[Event "2017 South African Open Ch"]
[Site "Durban"]
[Date "2017.07.19"]
[Round "8"]
[White "Kobese, Watu"]
[Black "Botao Milton"]
[Result "1-0"]
[ECO "B01"]
[WhiteElo "2367"]
[BlackElo "1963"]
[Annotator "NA"]
[PlyCount "85"]
[EventDate "2017.??.??"]
[EventCountry "RSA"]
[SourceTitle "playchess.com"]
[Source "ChessBase"]
[SourceQuality "1"]
[TimeControl "5400+30"]

1. e4 {[%emt 0:00:00]} d5 {[%emt 0:00:39]} 2. exd5 {[%emt 0:00:00]} Qxd5 {[%emt 0:00:08]} 3. Nc3 {[%emt 0:00:00]} Qa5 {[%emt 0:00:28]} 4. d4 {[%emt 0:00:22]} Nf6 {[%emt 0:01:22]} 5. Nf3 {[%emt 0:00:24]} Bf5 {[%emt 0:02:46]} 6. Ne5 {[%emt 0:01:01]} e6 {[%emt 0:04:41]} 7. g4 {[%emt 0:08:57]} Bg6 {[%emt 0:10:31]} 8. Nc4 {[%emt 0:05:59]} Qb4 {[%emt 0:04:52]} 9. a3 {[%emt 0:01:38]} Qe7 {[%emt 0:00:24]} 10. Bg2 {[%emt 0:00:20]} c6 {[%emt 0:01:00]} 11. Ne5 {[%emt 0:01:07]} Nfd7 {[%emt 0:10:18]} 12. Nxg6 {[%emt 0:10:05]} hxg6 {[%emt 0:00:54]} 13. Qe2 {[%emt 0:04:14]} Nf6 {[%emt 0:13:24]} 14. Bf4 {[%emt 0:04:37]} Nd5 {[%emt 0:07:54]} 15. Nxd5 {[%emt 0:01:27]} exd5 {[%emt 0:00:17]} 16. Be3 {[%emt 0:01:59]} Na6 {[%emt 0:11:05]} 17. O-O-O {[%emt 0:04:51]} O-O-O {[%emt 0:04:35]} 18. c4 {[%emt 0:05:36]} Nc7 {[%emt 0:08:50]} 19. Qd2 {[%emt 0:08:16]} Kb8 {[%emt 0:05:54]} 20. c5 {[%emt 0:06:10]} Qd7 {[%emt 0:02:56]} 21. h3 {[%emt 0:05:39]} Be7 {[%emt 0:00:49]} 22. f4 {[%emt 0:04:15]} Rde8 {[%emt 0:00:31]} 23. Rhf1 {[%emt 0:00:34]} f6 {[%emt 0:02:03]} 24. f5 {[%emt 0:01:10]} g5 {[%emt 0:00:37]} 25. Bf2 {[%emt 0:03:04]} Bd8 {[%emt 0:00:19]} 26. Rfe1 {[%emt 0:01:24]} Rxe1 {[%emt 0:01:20]} 27. Rxe1 {[%emt 0:00:01]} Re8 {[%emt 0:00:03]} 28. Rh1 {[%emt 0:01:06]} Na6 {[%emt 0:01:13]} 29. h4 {[%emt 0:01:10]} gxh4 {[%emt 0:01:10]} 30. Rxh4 {[%emt 0:00:38]} b6 {[%emt 0:00:40]} 31. Rh7 {[%emt 0:02:25]} Qf7 {[%emt 0:00:53]} 32. Bf1 {[%emt 0:04:11]} Kb7 {[%emt 0:00:38]} 33. Bd3 {[%emt 0:01:00]} Nb8 {[%emt 0:01:37]} 34. Qh6 {[%emt 0:02:54]} Rg8 {[%emt 0:00:57]} 35. Qg6 {[%emt 0:04:08]} Qe7 {[%emt 0:01:04]} 36. Rh1 {[%emt 0:01:05]} Qe8 {[%emt 0:00:26]} 37. b4 {[%emt 0:01:08]} Nd7 {[%emt 0:00:33]} 38. Qh7 {[%emt 0:00:25]} Qf7 {[%emt 0:00:12]} 39. Re1 {[%emt 0:00:38]} Nf8 {[%emt 0:00:20]} 40. Qh2 {[%emt 0:00:38]} Bc7 {[%emt 0:00:57]} 41. Bg3 {[%emt 0:00:05]} Bxg3 {[%emt 0:00:34]} 42. Qxg3 {[%emt 0:00:06]} Qc7 {[%emt 0:00:35]} 43. Ba6+ {[%emt 0:00:13]} 1-0

[Event "2017 South African Open Ch"]
[Site "Durban"]
[Date "2017.07.19"]
[Round "8"]
[White "Masango, Spencer"]
[Black "Wilken, Justin Barend"]
[Result "1-0"]
[ECO "A06"]
[WhiteElo "2203"]
[BlackElo "1920"]
[Annotator "ChessBase"]
[PlyCount "129"]
[EventDate "2017.??.??"]
[EventCountry "RSA"]
[SourceTitle "playchess.com"]
[Source "ChessBase"]
[SourceQuality "1"]
[TimeControl "5400+30"]

1. Nf3 {[%emt 0:00:00]} d5 {[%emt 0:02:52]} 2. d4 {[%emt 0:00:00]} e6 {[%emt 0:00:51]} 3. g3 {[%emt 0:00:49]} Bd6 {[%emt 0:00:09]} 4. Bg2 {[%emt 0:00:07]} f5 {[%emt 0:00:09]} 5. O-O {[%emt 0:00:12]} Nd7 {[%emt 0:00:17]} 6. c4 {[%emt 0:00:14]} c6 {[%emt 0:00:03]} 7. b3 {[%emt 0:01:32]} Ne7 {[%emt 0:01:09]} 8. Ba3 {[%emt 0:01:36]} Bc7 {[%emt 0:00:35]} 9. Nc3 {[%emt 0:01:00]} O-O {[%emt 0:00:16]} 10. cxd5 {[%emt 0:00:22]} exd5 {[%emt 0:00:40]} 11. Rc1 {[%emt 0:01:24]} Nf6 {[%emt 0:03:37]} 12. Qc2 {[%emt 0:02:19]} Re8 {[%emt 0:10:39]} 13. e3 {[%emt 0:05:44]} Ng6 {[%emt 0:05:19]} 14. Rfe1 {[%emt 0:03:04]} Ne4 {[%emt 0:08:21]} 15. Nd2 {[%emt 0:03:13]} Be6 {[%emt 0:05:24]} 16. f4 {[%emt 0:01:44]} Nxd2 {[%emt 0:08:28]} 17. Qxd2 {[%emt 0:00:08]} Nf8 {[%emt 0:05:45]} 18. Na4 {[%emt 0:02:26]} Bc8 {[%emt 0:14:44]} 19. Nc5 {[%emt 0:04:46]} Bd6 {[%emt 0:02:16]} 20. Bb2 {[%emt 0:00:20]} Qe7 {[%emt 0:03:17]} 21. Nd3 {[%emt 0:00:42]} a5 {[%emt 0:02:53]} 22. Bc3 {[%emt 0:00:48]} b6 {[%emt 0:02:52]} 23. b4 {[%emt 0:01:07]} Ba6 {[%emt 0:07:57]} 24. bxa5 {[%emt 0:01:42]} bxa5 {[%emt 0:01:08]} 25. Nc5 {[%emt 0:02:01]} Bc4 {[%emt 0:00:59]} 26. Nb3 {[%emt 0:08:23]} a4 {[%emt 0:02:53]} 27. Na5 {[%emt 0:00:38]} Bb5 {[%emt 0:00:42]} 28. Rb1 {[%emt 0:00:49]} Ne6 {[%emt 0:02:34]} 29. Rxb5 {[%emt 0:11:23]} cxb5 {[%emt 0:00:01]} 30. Bxd5 {[%emt 0:00:10]} b4 {[%emt 0:01:22]} 31. Nc6 {[%emt 0:00:18]} Qf8 {[%emt 0:02:15]} 32. Nxb4 {[%emt 0:01:31]} Kh8 {[%emt 0:00:37]} 33. Bxa8 {[%emt 0:03:15]} Rxa8 {[%emt 0:00:01]} 34. Nd3 {[%emt 0:00:54]} Rb8 {[%emt 0:00:19]} 35. d5 {[%emt 0:03:12]} Nc7 {[%emt 0:00:24]} 36. Ne5 {[%emt 0:00:34]} Rb5 {[%emt 0:01:01]} 37. Rd1 {[%emt 0:05:36]} Rxd5 {[%emt 0:00:42]} 38. Qc2 {[%emt 0:00:16]} Bc5 {[%emt 0:01:52]} 39. Bd4 {[%emt 0:01:05]} Ne6 {[%emt 0:00:42]} 40. Qxa4 {[%emt 0:01:30]} Bxd4 {[%emt 0:00:46]} 41. exd4 {[%emt 0:00:25]} Qc8 {[%emt 0:02:58]} 42. Qc6 {[%emt 0:00:30]} Qxc6 {[%emt 0:00:27]} 43. Nxc6 {[%emt 0:00:06]} g5 {[%emt 0:01:04]} 44. fxg5 {[%emt 0:02:13]} Nxg5 {[%emt 0:00:12]} 45. a4 {[%emt 0:00:37]} Rd6 {[%emt 0:00:28]} 46. d5 {[%emt 0:00:14]} Ne6 {[%emt 0:00:19]} 47. Ne7 {[%emt 0:02:35]} f4 {[%emt 0:00:41]} 48. Nf5 {[%emt 0:01:59]} Rd8 {[%emt 0:00:35]} 49. d6 {[%emt 0:04:06]} fxg3 {[%emt 0:00:46]} 50. hxg3 {[%emt 0:00:08]} Kg8 {[%emt 0:00:09]} 51. Rf1 {[%emt 0:02:55]} Nc5 {[%emt 0:00:52]} 52. a5 {[%emt 0:00:58]} Kf7 {[%emt 0:00:18]} 53. Rd1 {[%emt 0:02:00]} Ke6 {[%emt 0:00:29]} 54. Nd4+ {[%emt 0:01:12]} Kd7 {[%emt 0:00:19]} 55. Rc1 {[%emt 0:01:38]} Ne4 {[%emt 0:00:43]} 56. Nf5 {[%emt 0:01:42]} Ke6 {[%emt 0:00:41]} 57. Nd4+ {[%emt 0:07:23]} Kd7 {[%emt 0:00:01]} 58. Nb5 {[%emt 0:00:22]} Ra8 {[%emt 0:01:02]} 59. Rc7+ {[%emt 0:00:18]} Ke6 {[%emt 0:00:01]} 60. Re7+ {[%emt 0:00:24]} Kf5 {[%emt 0:00:34]} 61. Nd4+ {[%emt 0:01:03]} Kf6 {[%emt 0:00:53]} 62. Re6+ {[%emt 0:01:00]} Kf7 {[%emt 0:00:18]} 63. Rxe4 {[%emt 0:00:07]} Rxa5 {[%emt 0:00:07]} 64. d7 {[%emt 0:00:20]} Rd5 {[%emt 0:00:13]} 65. Nc6 {[%emt 0:00:11]} 1-0

[Event "2017 South African Open Ch"]
[Site "Durban"]
[Date "2017.07.19"]
[Round "8"]
[White "Pon, Matt"]
[Black "Oberholzer, Francois"]
[Result "1/2-1/2"]
[ECO "B40"]
[WhiteElo "2163"]
[BlackElo "2046"]
[Annotator "NA"]
[PlyCount "33"]
[EventDate "2017.??.??"]
[EventCountry "RSA"]
[SourceTitle "playchess.com"]
[Source "ChessBase"]
[SourceQuality "1"]
[TimeControl "5400+30"]

1. e4 {[%emt 0:00:09]} c5 {[%emt 0:01:02]} 2. Nf3 {[%emt 0:00:18]} e6 {[%emt 0:01:04]} 3. d3 {[%emt 0:01:09]} Nc6 {[%emt 0:00:32]} 4. g3 {[%emt 0:00:22]} Nge7 {[%emt 0:01:08]} 5. Bg2 {[%emt 0:02:24]} g6 {[%emt 0:00:55]} 6. O-O {[%emt 0:00:57]} Bg7 {[%emt 0:00:45]} 7. c3 {[%emt 0:00:50]} O-O {[%emt 0:01:00]} 8. Qe2 {[%emt 0:00:57]} e5 {[%emt 0:01:24]} 9. a3 {[%emt 0:00:52]} d6 {[%emt 0:23:21]} 10. b4 {[%emt 0:01:33]} a6 {[%emt 0:00:45]} 11. Be3 {[%emt 0:02:26]} b6 {[%emt 0:02:20]} 12. Nh4 {[%emt 0:05:42]} Bd7 {[%emt 0:07:06]} 13. Ra2 {[%emt 0:10:15]} Rc8 {[%emt 0:02:58]} 14. f4 {[%emt 0:07:54]} f5 {[%emt 0:03:54]} 15. Rd2 {[%emt 0:06:17]} exf4 {[%emt 0:13:46]} 16. gxf4 {[%emt 0:01:12]} Kh8 {[%emt 0:02:11]} 17. Nf3 {[%emt 0:07:22]} 1/2-1/2

[Event "2017 South African Open Ch"]
[Site "Durban"]
[Date "2017.07.19"]
[Round "8"]
[White "Mnguni, Jacob Dumisani"]
[Black "Tavagwisa, Lawrence"]
[Result "1-0"]
[ECO "E63"]
[WhiteElo "2147"]
[BlackElo "1935"]
[Annotator "NA"]
[PlyCount "99"]
[EventDate "2017.??.??"]
[EventCountry "RSA"]
[SourceTitle "playchess.com"]
[Source "ChessBase"]
[SourceQuality "1"]
[TimeControl "5400+30"]

1. c4 {[%emt 0:00:00]} Nf6 {[%emt 0:00:12]} 2. g3 {[%emt 0:00:00]} g6 {[%emt 0:00:30]} 3. Bg2 {[%emt 0:00:00]} Bg7 {[%emt 0:00:11]} 4. Nc3 {[%emt 0:00:00]} d6 {[%emt 0:00:40]} 5. Nf3 {[%emt 0:00:00]} O-O {[%emt 0:00:17]} 6. d4 {[%emt 0:00:00]} Nc6 {[%emt 0:01:20]} 7. O-O {[%emt 0:00:10]} a6 {[%emt 0:00:07]} 8. b3 {[%emt 0:04:13]} e5 {[%emt 0:01:18]} 9. Bb2 {[%emt 0:02:13]} Bg4 {[%emt 0:04:35]} 10. dxe5 {[%emt 0:01:42]} dxe5 {[%emt 0:00:29]} 11. h3 {[%emt 0:00:50]} Bd7 {[%emt 0:07:29]} 12. Qc1 {[%emt 0:09:20]} h6 {[%emt 0:10:54]} 13. Rd1 {[%emt 0:00:53]} e4 {[%emt 0:04:18]} 14. Ne1 {[%emt 0:07:03]} Re8 {[%emt 0:01:17]} 15. Nc2 {[%emt 0:00:19]} Qc8 {[%emt 0:04:17]} 16. Kh2 {[%emt 0:00:07]} b5 {[%emt 0:12:04]} 17. cxb5 {[%emt 0:03:33]} axb5 {[%emt 0:00:08]} 18. Nxb5 {[%emt 0:03:23]} Ra5 {[%emt 0:02:02]} 19. a4 {[%emt 0:00:46]} Ne5 {[%emt 0:04:15]} 20. Ncd4 {[%emt 0:13:21]} Bxb5 {[%emt 0:08:12]} 21. Nxb5 {[%emt 0:01:21]} Qf5 {[%emt 0:02:09]} 22. Kg1 {[%emt 0:04:07]} e3 {[%emt 0:09:01]} 23. f4 {[%emt 0:05:11]} Neg4 {[%emt 0:01:32]} 24. Bxf6 {[%emt 0:03:13]} Nxf6 {[%emt 0:03:11]} 25. Qxc7 {[%emt 0:00:21]} Rxb5 {[%emt 0:10:31]} 26. axb5 {[%emt 0:01:31]} Qxb5 {[%emt 0:00:33]} 27. Qc4 {[%emt 0:02:47]} Qxc4 {[%emt 0:00:22]} 28. bxc4 {[%emt 0:00:01]} Nh5 {[%emt 0:00:24]} 29. Ra8 {[%emt 0:00:22]} Rxa8 {[%emt 0:00:39]} 30. Bxa8 {[%emt 0:00:01]} Nxg3 {[%emt 0:00:34]} 31. Bf3 {[%emt 0:00:03]} h5 {[%emt 0:02:43]} 32. c5 {[%emt 0:01:08]} Bh6 {[%emt 0:00:10]} 33. c6 {[%emt 0:02:11]} Bxf4 {[%emt 0:00:08]} 34. Rd7 {[%emt 0:00:05]} g5 {[%emt 0:03:42]} 35. c7 {[%emt 0:00:14]} Bxc7 {[%emt 0:00:06]} 36. Rxc7 {[%emt 0:00:02]} f5 {[%emt 0:00:18]} 37. Kg2 {[%emt 0:00:04]} h4 {[%emt 0:00:32]} 38. Re7 {[%emt 0:00:22]} Kf8 {[%emt 0:03:38]} 39. Rxe3 {[%emt 0:00:36]} Kf7 {[%emt 0:00:34]} 40. Ra3 {[%emt 0:00:06]} Ke6 {[%emt 0:00:51]} 41. Ra5 {[%emt 0:00:45]} Kf6 {[%emt 0:00:29]} 42. Kf2 {[%emt 0:00:16]} Ke6 {[%emt 0:02:03]} 43. Ke3 {[%emt 0:00:22]} Nf1+ {[%emt 0:00:49]} 44. Kd4 {[%emt 0:00:12]} Nh2 {[%emt 0:00:52]} 45. Ra6+ {[%emt 0:00:28]} Kf7 {[%emt 0:00:22]} 46. Bh5+ {[%emt 0:01:07]} Ke7 {[%emt 0:01:47]} 47. Ke5 {[%emt 0:00:18]} g4 {[%emt 0:00:24]} 48. Ra7+ {[%emt 0:00:04]} Kd8 {[%emt 0:00:45]} 49. Kd6 {[%emt 0:00:28]} Kc8 {[%emt 0:00:01]} 50. Bf7 {[%emt 0:00:17]} 1-0

[Event "2017 South African Open Ch"]
[Site "Durban"]
[Date "2017.07.19"]
[Round "8"]
[White "Abrantes, Persson"]
[Black "Oatlhotse, Providence"]
[Result "0-1"]
[ECO "A56"]
[WhiteElo "2003"]
[BlackElo "2190"]
[Annotator "ChessBase"]
[PlyCount "102"]
[EventDate "2017.??.??"]
[EventCountry "RSA"]
[SourceTitle "playchess.com"]
[Source "ChessBase"]
[SourceQuality "1"]
[TimeControl "5400+30"]

1. d4 {[%emt 0:00:00]} Nf6 {[%emt 0:00:01]} 2. c4 {[%emt 0:00:00]} c5 {[%emt 0:00:10]} 3. d5 {[%emt 0:00:19]} g6 {[%emt 0:00:16]} 4. Nc3 {[%emt 0:00:04]} Bg7 {[%emt 0:00:03]} 5. e4 {[%emt 0:00:16]} O-O {[%emt 0:00:07]} 6. Nf3 {[%emt 0:00:06]} d6 {[%emt 0:01:39]} 7. h3 {[%emt 0:00:07]} b5 {[%emt 0:01:33]} 8. cxb5 {[%emt 0:00:30]} a6 {[%emt 0:00:02]} 9. Qc2 {[%emt 0:01:25]} e6 {[%emt 0:04:45]} 10. dxe6 {[%emt 0:10:09]} Bxe6 {[%emt 0:00:14]} 11. Be2 {[%emt 0:03:11]} axb5 {[%emt 0:09:53]} 12. Bxb5 {[%emt 0:04:47]} Na6 {[%emt 0:00:11]} 13. Ng5 {[%emt 0:05:14]} Nb4 {[%emt 0:00:53]} 14. Qe2 {[%emt 0:00:18]} Bb3 {[%emt 0:00:34]} 15. O-O {[%emt 0:03:30]} Nc2 {[%emt 0:01:09]} 16. Qd1 {[%emt 0:05:13]} Nd4 {[%emt 0:04:25]} 17. Qd3 {[%emt 0:03:00]} h6 {[%emt 0:08:39]} 18. Nf3 {[%emt 0:00:35]} Bc2 {[%emt 0:00:16]} 19. Qd2 {[%emt 0:04:54]} Nxe4 {[%emt 0:02:04]} 20. Nxe4 {[%emt 0:00:43]} Bxe4 {[%emt 0:00:07]} 21. Nxd4 {[%emt 0:00:15]} cxd4 {[%emt 0:06:21]} 22. a4 {[%emt 0:00:35]} Qb6 {[%emt 0:03:55]} 23. Ra3 {[%emt 0:03:28]} Rac8 {[%emt 0:03:04]} 24. Bd3 {[%emt 0:00:42]} f5 {[%emt 0:01:57]} 25. a5 {[%emt 0:01:27]} Qc6 {[%emt 0:07:55]} 26. f3 {[%emt 0:00:14]} Bd5 {[%emt 0:00:41]} 27. b4 {[%emt 0:06:03]} g5 {[%emt 0:02:30]} 28. b5 {[%emt 0:03:03]} Qd7 {[%emt 0:06:12]} 29. Bb2 {[%emt 0:01:28]} g4 {[%emt 0:09:12]} 30. Qf4 {[%emt 0:13:09]} gxf3 {[%emt 0:09:42]} 31. gxf3 {[%emt 0:00:30]} Be5 {[%emt 0:01:08]} 32. Qxh6 {[%emt 0:02:01]} Rf6 {[%emt 0:00:35]} 33. Qg5+ {[%emt 0:05:34]} Kf7 {[%emt 0:01:33]} 34. Kf2 {[%emt 0:00:25]} Rg8 {[%emt 0:03:28]} 35. Qh5+ {[%emt 0:00:40]} Kf8 {[%emt 0:00:05]} 36. Rg1 {[%emt 0:08:44]} Rxg1 {[%emt 0:00:16]} 37. Kxg1 {[%emt 0:00:02]} Qg7+ {[%emt 0:00:40]} 38. Kf1 {[%emt 0:00:01]} Qg3 {[%emt 0:01:42]} 39. Be2 {[%emt 0:14:42]} Rg6 {[%emt 0:02:47]} 40. Qxf5+ {[%emt 0:00:33]} Ke7 {[%emt 0:03:45]} 41. Qg4 {[%emt 0:00:59]} Rxg4 {[%emt 0:00:20]} 42. hxg4 {[%emt 0:00:11]} Qh3+ {[%emt 0:03:42]} 43. Ke1 {[%emt 0:00:04]} Qh1+ {[%emt 0:00:21]} 44. Kf2 {[%emt 0:01:26]} Qh4+ {[%emt 0:00:35]} 45. Kf1 {[%emt 0:00:32]} Bg3 {[%emt 0:00:56]} 46. Bxd4 {[%emt 0:00:47]} Qh3+ {[%emt 0:00:07]} 47. Kg1 {[%emt 0:00:08]} Qh2+ {[%emt 0:00:01]} 48. Kf1 {[%emt 0:00:01]} Qh1+ {[%emt 0:00:01]} 49. Bg1 {[%emt 0:00:01]} Bh2 {[%emt 0:00:01]} 50. Ke1 {[%emt 0:01:31]} Qxg1+ {[%emt 0:00:33]} 51. Kd2 {[%emt 0:00:26]} Bf4+ 0-1

[Event "2017 South African Open Ch"]
[Site "Durban"]
[Date "2017.07.19"]
[Round "8"]
[White "Choko, Siyabonga V"]
[Black "Solomons, Deon"]
[Result "0-1"]
[ECO "B08"]
[WhiteElo "1968"]
[BlackElo "2120"]
[Annotator "NA"]
[PlyCount "66"]
[EventDate "2017.??.??"]
[EventCountry "RSA"]
[SourceTitle "playchess.com"]
[Source "ChessBase"]
[SourceQuality "1"]
[TimeControl "5400+30"]

1. e4 {[%emt 0:00:00]} d6 {[%emt 0:01:07]} 2. d4 {[%emt 0:00:00]} g6 {[%emt 0:00:38]} 3. Nc3 {[%emt 0:00:00]} Bg7 {[%emt 0:00:06]} 4. Nf3 {[%emt 0:00:00]} Nf6 {[%emt 0:02:46]} 5. h3 {[%emt 0:00:15]} O-O {[%emt 0:00:46]} 6. Be3 {[%emt 0:00:25]} a6 {[%emt 0:00:24]} 7. Be2 {[%emt 0:00:22]} b5 {[%emt 0:00:53]} 8. a3 {[%emt 0:06:34]} Bb7 {[%emt 0:00:18]} 9. e5 {[%emt 0:00:21]} Nd5 {[%emt 0:00:54]} 10. Nxd5 {[%emt 0:00:23]} Bxd5 {[%emt 0:00:04]} 11. O-O {[%emt 0:00:25]} Nd7 {[%emt 0:11:22]} 12. Bf4 {[%emt 0:03:41]} f6 {[%emt 0:05:10]} 13. exf6 {[%emt 0:05:43]} Nxf6 {[%emt 0:02:59]} 14. b3 {[%emt 0:00:16]} Ne4 {[%emt 0:08:19]} 15. Bd2 {[%emt 0:08:02]} c5 {[%emt 0:03:22]} 16. c4 {[%emt 0:09:21]} Bc6 {[%emt 0:01:13]} 17. Be1 {[%emt 0:15:24]} e6 {[%emt 0:14:21]} 18. Rc1 {[%emt 0:03:25]} Ng5 {[%emt 0:07:25]} 19. d5 {[%emt 0:02:47]} exd5 {[%emt 0:00:58]} 20. cxd5 {[%emt 0:01:27]} Bd7 {[%emt 0:00:15]} 21. Nxg5 {[%emt 0:08:55]} Qxg5 {[%emt 0:00:07]} 22. Bd2 {[%emt 0:00:14]} Qh4 {[%emt 0:02:31]} 23. Be3 {[%emt 0:06:22]} Rae8 {[%emt 0:03:21]} 24. Qd2 {[%emt 0:00:36]} Re5 {[%emt 0:07:55]} 25. a4 {[%emt 0:03:53]} Rfe8 {[%emt 0:06:14]} 26. axb5 {[%emt 0:01:08]} axb5 {[%emt 0:00:07]} 27. Bf3 {[%emt 0:04:28]} Rf8 {[%emt 0:04:05]} 28. Be2 {[%emt 0:00:07]} Rfe8 {[%emt 0:00:52]} 29. Bf3 {[%emt 0:03:18]} Rf8 {[%emt 0:00:44]} 30. Be2 {[%emt 0:01:26]} Rfe8 {[%emt 0:01:01]} 31. Rfe1 {[%emt 0:00:24]} Bxh3 {[%emt 0:05:12]} 32. gxh3 {[%emt 0:00:24]} Rxe3 {[%emt 0:00:32]} 33. Bxb5 {[%emt 0:08:29]} Qg5+ {[%emt 0:01:56]} 0-1

[Event "2017 South African Open Ch"]
[Site "Durban"]
[Date "2017.07.19"]
[Round "8"]
[White "Mpya, Tshediso M"]
[Black "Bhawoodien, Mohamed Ozayr"]
[Result "0-1"]
[ECO "A52"]
[WhiteElo "1897"]
[BlackElo "2103"]
[Annotator "NA"]
[PlyCount "112"]
[EventDate "2017.??.??"]
[EventCountry "RSA"]
[SourceTitle "playchess.com"]
[Source "ChessBase"]
[SourceQuality "1"]
[TimeControl "5400+30"]

1. d4 {[%emt 0:00:00]} Nf6 {[%emt 0:06:12]} 2. c4 {[%emt 0:00:00]} e5 {[%emt 0:01:30]} 3. dxe5 {[%emt 0:01:09]} Ng4 {[%emt 0:00:15]} 4. Bf4 {[%emt 0:01:16]} Nc6 {[%emt 0:00:11]} 5. Nf3 {[%emt 0:00:12]} Bb4+ {[%emt 0:00:07]} 6. Nc3 {[%emt 0:01:04]} Bxc3+ {[%emt 0:00:12]} 7. bxc3 {[%emt 0:00:02]} Qe7 {[%emt 0:00:11]} 8. Qd5 {[%emt 0:01:27]} f6 {[%emt 0:00:10]} 9. exf6 {[%emt 0:09:05]} Nxf6 {[%emt 0:00:08]} 10. Qd3 {[%emt 0:00:11]} d6 {[%emt 0:00:14]} 11. g3 {[%emt 0:01:20]} Ne4 {[%emt 0:05:57]} 12. Nd4 {[%emt 0:00:47]} Nc5 {[%emt 0:00:23]} 13. Qc2 {[%emt 0:04:09]} Ne5 {[%emt 0:04:41]} 14. Bg2 {[%emt 0:00:48]} Ned3+ {[%emt 0:07:50]} 15. Kf1 {[%emt 0:00:47]} Nxf4 {[%emt 0:00:12]} 16. gxf4 {[%emt 0:00:14]} O-O {[%emt 0:00:42]} 17. e3 {[%emt 0:01:16]} Bd7 {[%emt 0:08:28]} 18. h4 {[%emt 0:03:22]} Kh8 {[%emt 0:03:53]} 19. Rb1 {[%emt 0:00:23]} c6 {[%emt 0:03:52]} 20. Bf3 {[%emt 0:00:52]} Be8 {[%emt 0:06:55]} 21. h5 {[%emt 0:02:35]} Bf7 {[%emt 0:00:41]} 22. Qe2 {[%emt 0:02:05]} Bg8 {[%emt 0:04:01]} 23. Rg1 {[%emt 0:04:27]} Qf7 {[%emt 0:01:38]} 24. h6 {[%emt 0:13:08]} g6 {[%emt 0:03:16]} 25. Qc2 {[%emt 0:05:43]} Qxc4+ {[%emt 0:01:17]} 26. Be2 {[%emt 0:00:45]} Qxa2 {[%emt 0:00:33]} 27. Rb2 {[%emt 0:00:01]} Qf7 {[%emt 0:02:09]} 28. Nf3 {[%emt 0:01:59]} Qf5 {[%emt 0:01:17]} 29. Qd2 Qf6 {[%emt 0:08:12]} 30. Ng5 {[%emt 0:01:16]} a5 {[%emt 0:00:47]} 31. c4 {[%emt 0:01:25]} a4 {[%emt 0:01:02]} 32. Kg2 {[%emt 0:01:41]} a3 {[%emt 0:06:04]} 33. Ra2 {[%emt 0:00:29]} Ra4 {[%emt 0:02:04]} 34. Rb1 {[%emt 0:02:20]} Rfa8 {[%emt 0:03:16]} 35. Rxb7 {[%emt 0:00:29]} Nxb7 {[%emt 0:02:24]} 36. Ne4 {[%emt 0:00:14]} Bd5 {[%emt 0:00:10]} 37. cxd5 {[%emt 0:00:19]} Rxe4 {[%emt 0:00:08]} 38. dxc6 {[%emt 0:00:24]} Nc5 {[%emt 0:01:47]} 39. c7 {[%emt 0:00:51]} Re7 {[%emt 0:02:42]} 40. Rxa3 {[%emt 0:00:56]} Rc8 {[%emt 0:00:24]} 41. Qa5 {[%emt 0:00:11]} Ne6 {[%emt 0:02:51]} 42. Rc3 {[%emt 0:00:36]} Rexc7 {[%emt 0:01:01]} 43. Rd3 {[%emt 0:01:07]} Nc5 {[%emt 0:01:32]} 44. Rd5 {[%emt 0:00:33]} Nd7 {[%emt 0:04:12]} 45. Qd2 {[%emt 0:04:31]} Rc2 {[%emt 0:00:57]} 46. Qd1 {[%emt 0:01:14]} Qb2 {[%emt 0:00:30]} 47. Rb5 {[%emt 0:00:20]} Qc3 {[%emt 0:01:11]} 48. Bg4 {[%emt 0:01:49]} Qc6+ {[%emt 0:00:39]} 49. Kg3 {[%emt 0:00:33]} Qxb5 {[%emt 0:01:17]} 50. Qxd6 {[%emt 0:00:26]} Qc6 {[%emt 0:01:14]} 51. Qd4+ {[%emt 0:02:20]} Qf6 {[%emt 0:00:17]} 52. Qxd7 g5 {[%emt 0:00:43]} 53. Qg7+ {[%emt 0:04:40]} Qxg7 {[%emt 0:00:07]} 54. hxg7+ {[%emt 0:00:01]} Kxg7 {[%emt 0:00:02]} 55. Bxc8 {[%emt 0:00:17]} gxf4+ {[%emt 0:00:07]} 56. Kxf4 {[%emt 0:00:05]} Rxc8 {[%emt 0:00:06]} 0-1

[Event "2017 South African Open Ch"]
[Site "Durban"]
[Date "2017.07.19"]
[Round "8"]
[White "Jacobs, Kevin T"]
[Black "Bhawoodien, Shabir Hussain"]
[Result "1-0"]
[ECO "C30"]
[WhiteElo "1882"]
[BlackElo "2066"]
[Annotator "NA"]
[PlyCount "39"]
[EventDate "2017.??.??"]
[EventCountry "RSA"]
[SourceTitle "playchess.com"]
[Source "ChessBase"]
[SourceQuality "1"]
[TimeControl "5400+30"]

1. e4 {[%emt 0:01:35]} e5 {[%emt 0:04:47]} 2. f4 {[%emt 0:00:55]} Bc5 {[%emt 0:00:39]} 3. Nf3 {[%emt 0:00:17]} d6 {[%emt 0:00:08]} 4. c3 {[%emt 0:00:48]} Qe7 {[%emt 0:03:44]} 5. d4 {[%emt 0:04:28]} exd4 {[%emt 0:01:14]} 6. cxd4 {[%emt 0:00:21]} Qxe4+ {[%emt 0:05:01]} 7. Kf2 {[%emt 0:00:39]} Qf5 {[%emt 0:34:00]} 8. dxc5 {[%emt 0:00:09]} Qxc5+ {[%emt 0:00:04]} 9. Be3 {[%emt 0:01:53]} Qh5 {[%emt 0:02:17]} 10. Bd4 {[%emt 0:03:11]} Nf6 {[%emt 0:00:21]} 11. Bxf6 {[%emt 0:04:23]} gxf6 {[%emt 0:00:02]} 12. Nc3 {[%emt 0:01:13]} Be6 {[%emt 0:03:33]} 13. Bb5+ {[%emt 0:04:12]} c6 {[%emt 0:04:09]} 14. Ne4 {[%emt 0:00:13]} Kf8 {[%emt 0:03:41]} 15. Qxd6+ {[%emt 0:02:39]} Kg7 {[%emt 0:00:00]} 16. Be2 {[%emt 0:02:59]} Qa5 {[%emt 0:03:08]} 17. b4 {[%emt 0:01:26]} Qb6+ {[%emt 0:00:18]} 18. Qc5 {[%emt 0:00:05]} Qc7 {[%emt 0:00:29]} 19. Nxf6 {[%emt 0:00:39]} Kxf6 {[%emt 0:02:43]} 20. Qg5# 1-0